fUST/lending_fUST_20250121
["ID","MTS","AMOUNT","RATE_DAILY","PERIOD"]
[349812730,1737445834714,-2958.46,0.00021917,3]
[349812732,1737445834723,-500.0,0.00021917,3]
[349812734,1737445834732,-500.0,0.00021917,3]
[349812736,1737445834741,-789.15,0.00021917,3]
[349812738,1737445834751,-2221.86,0.00021917,3]
[349812740,1737445834760,-500.0,0.00021917,3]
[349812742,1737445834769,-1000.0,0.00022,22]
[349812744,1737445834778,-415.13543584,0.00022,3]
[349812746,1737445834787,-406.0,0.00022,9]
[349812748,1737445834796,-421.68271351,0.00022003,3]
[349812750,1737445834806,-500.0,0.00022053,2]
[349812752,1737445834817,-216.24482472,0.00022053,2]
[349812754,1737445834826,-493.03306271,0.00022053,2]
[349812756,1737445834835,-500.0,0.00022053,2]
[349812758,1737445834846,-202.5,0.00022053,2]
[349812760,1737445834855,-331.82330715,0.00022053,2]
[349812762,1737445834864,-179.64185057,0.00022053,2]
[349812764,1737445834874,-500.0,0.00022054,3]
[349812766,1737445834883,-500.0,0.00022054,3]
[349812768,1737445834892,-1597.03,0.00022054,3]
[349812770,1737445834901,-500.0,0.00022054,3]
[349812772,1737445834911,-500.0,0.00022054,3]
[349812774,1737445834921,-500.0,0.00022054,3]
[349812776,1737445834930,-500.0,0.00022054,3]
[349812778,1737445834939,-500.0,0.00022054,3]
[349812780,1737445834948,-500.0,0.00022054,3]
[349812782,1737445834959,-500.0,0.00022054,3]
[349812784,1737445834968,-500.0,0.00022054,3]
[349812786,1737445834978,-500.0,0.00022054,3]
[349812788,1737445834987,-500.0,0.00022054,3]
[349812790,1737445834998,-500.0,0.00022054,3]
[349812792,1737445835007,-500.0,0.00022054,3]
[349812794,1737445835016,-500.0,0.00022054,3]
[349812796,1737445835026,-500.0,0.00022054,3]
[349812798,1737445835035,-568.07,0.00022054,3]
[349812800,1737445835044,-864.16,0.00022054,3]
[349812802,1737445835054,-500.0,0.00022054,3]
[349812804,1737445835063,-500.0,0.00022054,3]
[349812807,1737445835073,-500.0,0.00022054,3]
[349812809,1737445835083,-932.18,0.00022054,3]
[349812811,1737445835094,-500.0,0.00022054,3]
[349812813,1737445835103,-790.22,0.00022054,3]
[349812815,1737445835112,-500.0,0.00022054,3]
[349812817,1737445835122,-500.0,0.00022054,3]
[349812819,1737445835132,-500.0,0.00022054,3]
[349812821,1737445835141,-1606.15,0.00022054,3]
[349812823,1737445835151,-500.0,0.00022054,3]
[349812825,1737445835160,-500.0,0.00022054,3]
[349812827,1737445835169,-500.0,0.00022054,3]
[349812829,1737445835179,-500.0,0.00022054,3]
[349812831,1737445835188,-790.11,0.00022054,3]
[349812833,1737445835198,-572.64,0.00022054,3]
[349812835,1737445835207,-500.0,0.00022054,3]
[349812837,1737445835217,-594.22,0.00022054,3]
[349812839,1737445835227,-542.41585853,0.00022054,3]
[349812841,1737445835236,-500.0,0.00022054,3]
[349812843,1737445835245,-500.0,0.00022054,3]
[349812845,1737445835255,-500.0,0.00022054,3]
[349812847,1737445835265,-500.0,0.00022054,3]
[349812849,1737445835275,-500.0,0.00022054,3]
[349812851,1737445835285,-500.0,0.00022054,3]
[349812853,1737445835295,-500.0,0.00022054,3]
[349812855,1737445835305,-553.37,0.00022054,3]
[349812857,1737445835315,-500.0,0.00022054,3]
[349812859,1737445835325,-500.0,0.00022054,3]
[349812861,1737445835334,-620.57,0.00022054,3]
[349812863,1737445835344,-542.23,0.00022054,3]
[349812865,1737445835353,-500.0,0.00022054,3]
[349812867,1737445835363,-500.0,0.00022054,3]
[349812869,1737445835372,-500.0,0.00022054,3]
[349812871,1737445835382,-500.0,0.00022054,3]
[349812873,1737445835392,-500.0,0.00022054,3]
[349812875,1737445835402,-500.0,0.00022054,3]
[349812877,1737445835411,-500.0,0.00022054,3]
[349812879,1737445835420,-500.0,0.00022054,3]
[349812881,1737445835430,-331.99228628,0.00022054,3]
[349812883,1737445835439,-719.29,0.00022054,2]
[349812885,1737445835448,-500.0,0.00022054,3]
[349812887,1737445835457,-500.0,0.00022054,3]
[349812889,1737445835468,-2046.88,0.00022054,3]
[349812891,1737445835478,-500.0,0.00022054,3]
[349812893,1737445835488,-500.0,0.00022054,3]
[349812895,1737445835498,-1291.1,0.00022054,3]
[349812897,1737445835507,-500.0,0.00022054,3]
[349812899,1737445835517,-500.0,0.00022054,3]
[349812901,1737445835527,-500.0,0.00022054,3]
[349812903,1737445835536,-730.6,0.00022054,3]
[349812905,1737445835546,-500.0,0.00022054,3]
[349812907,1737445835555,-1165.9,0.00022054,3]
[349812909,1737445835565,-765.92,0.00022054,3]
[349812911,1737445835575,-500.0,0.00022054,3]
[349812913,1737445835588,-5055.24,0.00022054,3]
[349812915,1737445835600,-500.0,0.00022054,3]
[349812917,1737445835610,-7533.42,0.00022054,3]
[349812919,1737445835620,-17357.03,0.00022054,3]
[349812921,1737445835631,-500.0,0.00022054,3]
[349812923,1737445835641,-500.0,0.00022054,3]
[349812925,1737445835650,-581.55,0.00022054,3]
[349812927,1737445835660,-532.93,0.00022054,3]
[349812929,1737445835672,-500.0,0.00022054,3]
[349812930,1737445835682,-500.0,0.00022054,3]
[349812933,1737445835692,-500.0,0.00022054,3]
[349812934,1737445835701,-993.71,0.00022054,3]
[349812937,1737445835711,-2783.63,0.00022054,3]
[349812938,1737445835720,-2198.26,0.00022054,3]
[349812940,1737445835729,-500.0,0.00022054,3]
[349812943,1737445835739,-1215.89,0.00022054,3]
[349812944,1737445835748,-500.0,0.00022054,3]
[349812947,1737445835757,-599.03,0.00022054,3]
[349812948,1737445835767,-931.18,0.00022054,3]
[349812950,1737445835776,-2780.34,0.00022054,3]
[349812952,1737445835785,-500.0,0.00022054,3]
[349812954,1737445835794,-1019.74,0.00022054,3]
[349812956,1737445835803,-500.0,0.00022054,3]
[349812958,1737445835813,-599.08,0.00022054,3]
[349812960,1737445835823,-500.0,0.00022054,3]
[349812962,1737445835832,-500.0,0.00022054,3]
[349812964,1737445835843,-500.0,0.00022054,3]
[349812966,1737445835853,-500.0,0.00022054,3]
[349812968,1737445835863,-500.0,0.00022054,3]
[349812970,1737445835872,-1165.5,0.00022054,3]
[349812972,1737445835882,-914.76,0.00022054,3]
[349812974,1737445835892,-500.0,0.00022054,3]
[349812976,1737445835901,-994.45,0.00022054,3]
[349812978,1737445835910,-1824.65,0.00022054,3]
[349812980,1737445835919,-10120.31,0.00022054,3]
[349812982,1737445835928,-2012.12,0.00022054,3]
[349812984,1737445835937,-500.0,0.00022054,3]
[349812986,1737445835948,-500.0,0.00022054,3]
[349812988,1737445835957,-987.54,0.00022054,3]
[349812990,1737445835967,-572.12,0.00022054,3]
[349812992,1737445835976,-500.0,0.00022054,3]
[349812994,1737445835986,-2599.66,0.00022054,3]
[349812996,1737445835996,-1039.7,0.00022054,3]
[349812999,1737445836005,-500.0,0.00022054,3]
[349813001,1737445836014,-500.0,0.00022054,3]
[349813003,1737445836024,-4806.59,0.00022054,3]
[349813005,1737445836033,-500.0,0.00022054,3]
[349813007,1737445836043,-4003.99,0.00022054,3]
[349813009,1737445836052,-1354.67,0.00022054,3]
[349813011,1737445836061,-826.73,0.00022054,3]
[349813013,1737445836071,-500.0,0.00022054,3]
[349813015,1737445836079,-500.0,0.00022054,3]
[349813017,1737445836088,-500.0,0.00022054,3]
[349813019,1737445836099,-28419.77,0.00022054,3]
[349813021,1737445836108,-500.0,0.00022054,3]
[349813023,1737445836117,-500.0,0.00022054,3]
[349813025,1737445836126,-500.0,0.00022054,3]
[349813026,1737445836135,-227.65423608,0.00022054,3]
[349813027,1737445836145,-500.0,0.00022054,3]
[349813028,1737445836154,-1440.09,0.00022054,3]
[349813029,1737445836164,-1221.69,0.00022054,3]
[349813030,1737445836174,-2958.46,0.00022054,3]
[349813031,1737445836183,-500.0,0.00022054,3]
[349813032,1737445836192,-789.15,0.00022054,3]
[349813033,1737445836202,-2221.86,0.00022054,3]
[349813034,1737445836211,-500.0,0.00022054,3]
[349813035,1737445836220,-421.68271351,0.00022107,3]
[349813036,1737445836230,-633.84006734,0.00022173,2]
[349813037,1737445836239,-165.716448,0.00022174,2]
[349813038,1737445836248,-500.0,0.00022191,3]
[349813039,1737445836257,-500.0,0.00022191,3]
[349813040,1737445836266,-1597.03,0.00022191,3]
[349813041,1737445836276,-500.0,0.00022191,3]
[349813042,1737445836285,-500.0,0.00022191,3]
[349813043,1737445836295,-500.0,0.00022191,3]
[349813044,1737445836304,-500.0,0.00022191,3]
[349813045,1737445836314,-500.0,0.00022191,3]
[349813046,1737445836323,-500.0,0.00022191,3]
[349813047,1737445836332,-500.0,0.00022191,3]
[349813048,1737445836341,-500.0,0.00022191,3]
[349813049,1737445836351,-500.0,0.00022191,3]
[349813050,1737445836360,-500.0,0.00022191,3]
[349813051,1737445836370,-500.0,0.00022191,3]
[349813052,1737445836380,-500.0,0.00022191,3]
[349813053,1737445836389,-500.0,0.00022191,3]
[349813054,1737445836399,-500.0,0.00022191,3]
[349813055,1737445836408,-568.07,0.00022191,3]
[349813056,1737445836417,-864.16,0.00022191,3]
[349813057,1737445836427,-500.0,0.00022191,3]
[349813058,1737445836436,-500.0,0.00022191,3]
[349813059,1737445836445,-500.0,0.00022191,3]
[349813060,1737445836454,-932.18,0.00022191,3]
[349813061,1737445836463,-500.0,0.00022191,3]
[349813062,1737445836472,-790.22,0.00022191,3]
[349813063,1737445836482,-500.0,0.00022191,3]
[349813064,1737445836491,-500.0,0.00022191,3]
[349813065,1737445836501,-500.0,0.00022191,3]
[349813066,1737445836510,-1606.15,0.00022191,3]
[349813067,1737445836520,-500.0,0.00022191,3]
[349813068,1737445836529,-500.0,0.00022191,3]
[349813069,1737445836538,-500.0,0.00022191,3]
[349813070,1737445836548,-500.0,0.00022191,3]
[349813071,1737445836557,-790.11,0.00022191,3]
[349813072,1737445836566,-572.64,0.00022191,3]
[349813073,1737445836576,-500.0,0.00022191,3]
[349813074,1737445836587,-594.22,0.00022191,3]
[349813075,1737445836601,-500.0,0.00022191,3]
[349813076,1737445836610,-500.0,0.00022191,3]
[349813077,1737445836619,-255.17671856,0.00022191,3]
[349813078,1737445836629,-500.0,0.00022191,3]
[349813079,1737445836639,-500.0,0.00022191,3]
[349813080,1737445836648,-500.0,0.00022191,3]
[349813081,1737445836657,-299.86,0.00022191,3]
[349813082,1737445836670,-500.0,0.00022191,3]
[349813083,1737445836679,-553.37,0.00022191,3]
[349813084,1737445836689,-500.0,0.00022191,3]
[349813085,1737445836698,-500.0,0.00022191,3]
[349813086,1737445836707,-620.57,0.00022191,3]
[349813087,1737445836716,-542.23,0.00022191,3]
[349813088,1737445836725,-500.0,0.00022191,3]
[349813089,1737445836734,-500.0,0.00022191,3]
[349813090,1737445836744,-500.0,0.00022191,3]
[349813091,1737445836754,-500.0,0.00022191,3]
[349813092,1737445836763,-500.0,0.00022191,3]
[349813093,1737445836773,-500.0,0.00022191,3]
[349813094,1737445836782,-500.0,0.00022191,3]
[349813095,1737445836794,-500.0,0.00022191,3]
[349813096,1737445836803,-719.29,0.00022191,2]
[349813097,1737445836812,-500.0,0.00022191,3]
[349813098,1737445836821,-500.0,0.00022191,3]
[349813099,1737445836830,-2046.88,0.00022191,3]
[349813100,1737445836839,-500.0,0.00022191,3]
[349813101,1737445836849,-500.0,0.00022191,3]
[349813102,1737445836859,-1291.1,0.00022191,3]
[349813103,1737445836869,-500.0,0.00022191,3]
[349813104,1737445836879,-500.0,0.00022191,3]
[349813105,1737445836888,-299.86,0.00022191,3]
[349813106,1737445836897,-500.0,0.00022191,3]
[349813107,1737445836906,-360.07775848,0.00022191,3]
[349813108,1737445836915,-730.6,0.00022191,3]
[349813109,1737445836925,-500.0,0.00022191,3]
[349813110,1737445836934,-1165.9,0.00022191,3]
[349813111,1737445836943,-765.92,0.00022191,3]
[349813112,1737445836952,-500.0,0.00022191,3]
[349813113,1737445836962,-5055.24,0.00022191,3]
[349813114,1737445837092,-500.0,0.00022191,3]
[349813115,1737445837101,-7533.42,0.00022191,3]
[349813116,1737445837111,-17357.03,0.00022191,3]
[349813117,1737445837120,-283.35290956,0.00022191,3]
[349813118,1737445837129,-500.0,0.00022191,3]
[349813119,1737445837138,-581.55,0.00022191,3]
[349813120,1737445837147,-532.93,0.00022191,3]
[349813121,1737445837156,-636.00016612,0.00022191,3]
[349813122,1737445837165,-500.0,0.00022191,3]
[349813123,1737445837175,-500.0,0.00022191,3]
[349813124,1737445837184,-993.71,0.00022191,3]
[349813125,1737445837193,-2783.63,0.00022191,3]
[349813126,1737445837203,-2198.26,0.00022191,3]
[349813127,1737445837212,-500.0,0.00022191,3]
[349813128,1737445837221,-1215.89,0.00022191,3]
[349813129,1737445837231,-500.0,0.00022191,3]
[349813130,1737445837240,-599.03,0.00022191,3]
[349813131,1737445837249,-931.18,0.00022191,3]
[349813132,1737445837258,-2780.34,0.00022191,3]
[349813133,1737445837267,-500.0,0.00022191,3]
[349813134,1737445837276,-1019.74,0.00022191,3]
[349813135,1737445837286,-500.0,0.00022191,3]
[349813136,1737445837296,-599.08,0.00022191,3]
[349813137,1737445837305,-227.82352887,0.00022191,3]
[349813138,1737445837314,-500.0,0.00022191,3]
[349813139,1737445837324,-500.0,0.00022191,3]
[349813140,1737445837333,-500.0,0.00022191,3]
[349813141,1737445837344,-500.0,0.00022191,3]
[349813142,1737445837353,-1165.5,0.00022191,3]
[349813143,1737445837363,-914.76,0.00022191,3]
[349813144,1737445837372,-500.0,0.00022191,3]
[349813145,1737445837382,-994.45,0.00022191,3]
[349813146,1737445837391,-1824.65,0.00022191,3]
[349813147,1737445837400,-10120.31,0.00022191,3]
[349813148,1737445837410,-2012.12,0.00022191,3]
[349813149,1737445837419,-500.0,0.00022191,3]
[349813150,1737445837429,-500.0,0.00022191,3]
[349813151,1737445837438,-987.54,0.00022191,3]
[349813152,1737445837448,-572.12,0.00022191,3]
[349813153,1737445837457,-500.0,0.00022191,3]
[349813154,1737445837466,-2599.66,0.00022191,3]
[349813155,1737445837476,-1039.7,0.00022191,3]
[349813156,1737445837485,-299.86,0.00022191,3]
[349813157,1737445837496,-414.93489705,0.00022191,3]
[349813158,1737445837505,-500.0,0.00022191,3]
[349813159,1737445837515,-299.86,0.00022191,2]
[349813160,1737445837525,-4806.59,0.00022191,3]
[349813161,1737445837534,-500.0,0.00022191,3]
[349813162,1737445837544,-4003.99,0.00022191,3]
[349813163,1737445837554,-1354.67,0.00022191,3]
[349813164,1737445837563,-826.73,0.00022191,3]
[349813165,1737445837573,-500.0,0.00022191,3]
[349813166,1737445837583,-500.0,0.00022191,3]
[349813167,1737445837595,-500.0,0.00022191,3]
[349813168,1737445837604,-28419.77,0.00022191,3]
[349813169,1737445837614,-500.0,0.00022191,3]
[349813170,1737445837623,-500.0,0.00022191,3]
[349813171,1737445837633,-500.0,0.00022191,3]
[349813172,1737445837642,-500.0,0.00022191,3]
[349813173,1737445837651,-1440.09,0.00022191,3]
[349813174,1737445837661,-1221.69,0.00022191,3]
[349813175,1737445837671,-2958.46,0.00022191,3]
[349813176,1737445837680,-299.84,0.00022191,3]
[349813177,1737445837690,-500.0,0.00022191,3]
[349813178,1737445837699,-531.0,0.00022191,3]
[349813179,1737445837708,-789.15,0.00022191,3]
[349813180,1737445837717,-2221.86,0.00022191,3]
[349813181,1737445837726,-500.0,0.00022191,3]
[349813182,1737445837735,-500.0,0.00022191,3]
[349813183,1737445837744,-1200.0,0.00022201,2]
[349813184,1737445837753,-151.0,0.00022201,2]
[349813185,1737445837763,-421.68271351,0.0002221,3]
[349813186,1737445837772,-12886.3803419,0.000223,7]
[349813187,1737445837781,-421.68271351,0.00022314,3]
[349813188,1737445837790,-500.0,0.00022327,2]
[349813189,1737445837800,-256.64210238,0.00022327,2]
[349813190,1737445837809,-300.61310941,0.00022327,2]
[349813191,1737445837818,-500.0,0.00022328,3]
[349813192,1737445837827,-500.0,0.00022328,3]
[349813193,1737445837837,-1597.03,0.00022328,3]
[349813194,1737445837846,-500.0,0.00022328,3]
[349813195,1737445837856,-500.0,0.00022328,3]
[349813197,1737445837865,-500.0,0.00022328,3]
[349813199,1737445837874,-500.0,0.00022328,3]
[349813202,1737445837883,-308.50439352,0.00022328,3]
[349813204,1737445837892,-500.0,0.00022328,3]
[349813206,1737445837902,-500.0,0.00022328,3]
[349813207,1737445837911,-500.0,0.00022328,3]
[349813209,1737445837920,-229.79198627,0.00022328,3]
[349813210,1737445837929,-500.0,0.00022328,3]
[349813211,1737445837938,-500.0,0.00022328,3]
[349813212,1737445837948,-500.0,0.00022328,3]
[349813213,1737445837958,-500.0,0.00022328,3]
[349813214,1737445837968,-193.41356865,0.00022328,3]
[349813215,1737445837977,-568.07,0.00022328,3]
[349813216,1737445837987,-864.16,0.00022328,3]
[349813217,1737445837997,-500.0,0.00022328,3]
[349813218,1737445838006,-500.0,0.00022328,3]
[349813219,1737445838015,-511.07127054,0.00022328,3]
[349813220,1737445838024,-932.18,0.00022328,3]
[349813221,1737445838033,-500.0,0.00022328,3]
[349813222,1737445838042,-790.22,0.00022328,3]
[349813223,1737445838051,-500.0,0.00022328,3]
[349813224,1737445838060,-500.0,0.00022328,3]
[349813225,1737445838070,-500.0,0.00022328,3]
[349813226,1737445838079,-1606.15,0.00022328,3]
[349813227,1737445838088,-500.0,0.00022328,3]
[349813228,1737445838098,-500.0,0.00022328,3]
[349813229,1737445838107,-500.0,0.00022328,3]
[349813230,1737445838117,-500.0,0.00022328,3]
[349813231,1737445838126,-790.11,0.00022328,3]
[349813233,1737445838135,-572.64,0.00022328,3]
[349813235,1737445838145,-500.0,0.00022328,3]
[349813237,1737445838154,-594.22,0.00022328,3]
[349813239,1737445838163,-500.0,0.00022328,3]
[349813241,1737445838173,-500.0,0.00022328,3]
[349813243,1737445838182,-500.0,0.00022328,3]
[349813244,1737445838191,-500.0,0.00022328,3]
[349813245,1737445838201,-500.0,0.00022328,3]
[349813247,1737445838210,-500.0,0.00022328,3]
[349813248,1737445838219,-553.37,0.00022328,3]
[349813250,1737445838229,-500.0,0.00022328,3]
[349813251,1737445838238,-500.0,0.00022328,3]
[349813252,1737445838248,-620.57,0.00022328,3]
[349813253,1737445838257,-542.23,0.00022328,3]
[349813254,1737445838266,-500.0,0.00022328,3]
[349813255,1737445838275,-500.0,0.00022328,3]
[349813256,1737445838285,-500.0,0.00022328,3]
[349813257,1737445838294,-500.0,0.00022328,3]
[349813259,1737445838303,-500.0,0.00022328,3]
[349813260,1737445838313,-500.0,0.00022328,3]
[349813261,1737445838322,-500.0,0.00022328,3]
[349813262,1737445838331,-500.0,0.00022328,3]
[349813263,1737445838340,-719.29,0.00022328,2]
[349813264,1737445838350,-500.0,0.00022328,3]
[349813265,1737445838359,-500.0,0.00022328,3]
[349813266,1737445838369,-2046.88,0.00022328,3]
[349813268,1737445838378,-500.0,0.00022328,3]
[349813270,1737445838387,-500.0,0.00022328,3]
[349813272,1737445838397,-1291.1,0.00022328,3]
[349813274,1737445838406,-500.0,0.00022328,3]
[349813275,1737445838415,-500.0,0.00022328,3]
[349813277,1737445838425,-730.6,0.00022328,3]
[349813278,1737445838434,-500.0,0.00022328,3]
[349813280,1737445838443,-1165.9,0.00022328,3]
[349813281,1737445838452,-765.92,0.00022328,3]
[349813282,1737445838462,-500.0,0.00022328,3]
[349813283,1737445838471,-5055.24,0.00022328,3]
[349813284,1737445838480,-500.0,0.00022328,3]
[349813285,1737445838489,-7533.42,0.00022328,3]
[349813286,1737445838498,-17357.03,0.00022328,3]
[349813287,1737445838508,-500.0,0.00022328,3]
[349813288,1737445838518,-581.55,0.00022328,3]
[349813289,1737445838527,-532.93,0.00022328,3]
[349813290,1737445838536,-500.0,0.00022328,3]
[349813291,1737445838545,-500.0,0.00022328,3]
[349813292,1737445838555,-993.71,0.00022328,3]
[349813293,1737445838564,-2783.63,0.00022328,3]
[349813294,1737445838573,-2198.26,0.00022328,3]
[349813295,1737445838582,-500.0,0.00022328,3]
[349813296,1737445838592,-1215.89,0.00022328,3]
[349813297,1737445838602,-500.0,0.00022328,3]
[349813298,1737445838612,-599.03,0.00022328,3]
[349813299,1737445838621,-931.18,0.00022328,3]
[349813300,1737445838633,-2780.34,0.00022328,3]
[349813301,1737445838643,-500.0,0.00022328,3]
[349813302,1737445838652,-1019.74,0.00022328,3]
[349813303,1737445838662,-500.0,0.00022328,3]
[349813304,1737445838674,-599.08,0.00022328,3]
[349813305,1737445838685,-500.0,0.00022328,3]
[349813306,1737445838696,-500.0,0.00022328,3]
[349813307,1737445838705,-500.0,0.00022328,3]
[349813308,1737445838714,-500.0,0.00022328,3]
[349813309,1737445838723,-1165.5,0.00022328,3]
[349813310,1737445838733,-914.76,0.00022328,3]
[349813311,1737445838743,-500.0,0.00022328,3]
[349813312,1737445838753,-994.45,0.00022328,3]
[349813313,1737445838763,-1824.65,0.00022328,3]
[349813314,1737445838773,-10120.31,0.00022328,3]
[349813315,1737445838783,-2012.12,0.00022328,3]
[349813316,1737445838792,-500.0,0.00022328,3]
[349813317,1737445838802,-500.0,0.00022328,3]
[349813318,1737445838811,-987.54,0.00022328,3]
[349813319,1737445838821,-572.12,0.00022328,3]
[349813320,1737445838831,-500.0,0.00022328,3]
[349813321,1737445838840,-2599.66,0.00022328,3]
[349813322,1737445838851,-1039.7,0.00022328,3]
[349813323,1737445838861,-500.0,0.00022328,3]
[349813324,1737445838871,-4806.59,0.00022328,3]
[349813325,1737445838880,-500.0,0.00022328,3]
[349813326,1737445838889,-4003.99,0.00022328,3]
[349813327,1737445838898,-1354.67,0.00022328,3]
[349813328,1737445838907,-826.73,0.00022328,3]
[349813329,1737445838916,-500.0,0.00022328,3]
[349813330,1737445838926,-500.0,0.00022328,3]
[349813331,1737445838936,-500.0,0.00022328,3]
[349813332,1737445838946,-28419.77,0.00022328,3]
[349813333,1737445838956,-500.0,0.00022328,3]
[349813334,1737445838965,-528.36228149,0.00022328,3]
[349813335,1737445838975,-500.0,0.00022328,3]
[349813336,1737445838985,-500.0,0.00022328,3]
[349813337,1737445838994,-1440.09,0.00022328,3]
[349813338,1737445839003,-1221.69,0.00022328,3]
[349813339,1737445839013,-2958.46,0.00022328,3]
[349813340,1737445839022,-500.0,0.00022328,3]
[349813341,1737445839031,-789.15,0.00022328,3]
[349813342,1737445839041,-2221.86,0.00022328,3]
[349813343,1737445839050,-151.0,0.00022415,6]
[349813344,1737445839060,-421.68271351,0.00022417,3]
[349813345,1737445839070,-711.03540302,0.00022465,3]
[349813346,1737445839079,-299.84,0.00022465,3]
[349813347,1737445839089,-531.0,0.00022465,3]
[349813348,1737445839099,-500.0,0.00022465,3]
[349813349,1737445839109,-500.0,0.00022465,3]
[349813350,1737445839118,-500.0,0.00022465,3]
[349813351,1737445839128,-1597.03,0.00022465,3]
[349813352,1737445839137,-500.0,0.00022465,3]
[349813353,1737445839147,-500.0,0.00022465,3]
[349813354,1737445839157,-500.0,0.00022465,3]
[349813355,1737445839166,-500.0,0.00022465,3]
[349813356,1737445839176,-500.0,0.00022465,3]
[349813357,1737445839186,-500.0,0.00022465,3]
[349813358,1737445839195,-500.0,0.00022465,3]
[349813359,1737445839205,-500.0,0.00022465,3]
[349813360,1737445839215,-500.0,0.00022465,3]
[349813361,1737445839224,-500.0,0.00022465,3]
[349813362,1737445839233,-500.0,0.00022465,3]
[349813363,1737445839243,-568.07,0.00022465,3]
[349813364,1737445839253,-864.16,0.00022465,3]
[349813365,1737445839262,-500.0,0.00022465,3]
[349813366,1737445839272,-500.0,0.00022465,3]
[349813367,1737445839281,-932.18,0.00022465,3]
[349813368,1737445839291,-500.0,0.00022465,3]
[349813369,1737445839300,-790.22,0.00022465,3]
[349813370,1737445839309,-500.0,0.00022465,3]
[349813371,1737445839319,-500.0,0.00022465,3]
[349813372,1737445839328,-500.0,0.00022465,3]
[349813373,1737445839338,-1606.15,0.00022465,3]
[349813374,1737445839348,-500.0,0.00022465,3]
[349813375,1737445839357,-500.0,0.00022465,3]
[349813376,1737445839366,-500.0,0.00022465,3]
[349813377,1737445839376,-500.0,0.00022465,3]
[349813378,1737445839385,-790.11,0.00022465,3]
[349813379,1737445839394,-572.64,0.00022465,3]
[349813380,1737445839404,-500.0,0.00022465,3]
[349813381,1737445839413,-594.22,0.00022465,3]
[349813382,1737445839422,-500.0,0.00022465,3]
[349813383,1737445839432,-500.0,0.00022465,3]
[349813384,1737445839441,-500.0,0.00022465,3]
[349813385,1737445839450,-500.0,0.00022465,3]
[349813386,1737445839459,-500.0,0.00022465,3]
[349813387,1737445839469,-500.0,0.00022465,3]
[349813388,1737445839479,-553.37,0.00022465,3]
[349813389,1737445839488,-500.0,0.00022465,3]
[349813390,1737445839497,-500.0,0.00022465,3]
[349813391,1737445839506,-620.57,0.00022465,3]
[349813392,1737445839516,-542.23,0.00022465,3]
[349813393,1737445839525,-500.0,0.00022465,3]
[349813394,1737445839535,-500.0,0.00022465,3]
[349813395,1737445839544,-500.0,0.00022465,3]
[349813396,1737445839553,-500.0,0.00022465,3]
[349813397,1737445839562,-500.0,0.00022465,3]
[349813398,1737445839571,-500.0,0.00022465,3]
[349813399,1737445839580,-500.0,0.00022465,3]